bitfinex/quotes_ETHUSD_20250414
["timestamp","ask_amount","ask_price","bid_price","bid_amount"]
[1744599986662,10.55458,1633.6,1633.3,0.26507625]
[1744599987034,4.89751,1633.5,1633.3,0.26507625]
[1744599987234,5.65725,1633.6,1633.3,0.26507625]
[1744599987565,7.8969,1633.7,1633.3,10.06106625]
[1744599987743,7.8969,1633.7,1633.5,4.89745]
[1744599987744,3.0,1633.7,1633.5,4.89745]
[1744599988062,7.707,1633.8,1633.5,0.979518]
[1744599988264,7.707,1633.8,1633.6,10.05206097]
[1744599988475,7.707,1633.8,1633.6,5.15502097]
[1744599988838,5.65551,1634.2,1633.8,4.89642]
[1744599989041,8.4641,1634.4,1634.1,4.89548]
[1744599989335,7.704,1634.4,1634.2,4.8952]
[1744599989634,7.704,1634.4,1634.3,0.25036425]
[1744599989844,7.704,1634.4,1634.3,5.14542425]
[1744599990170,0.02,1634.4,1634.3,5.14542425]
[1744599990475,0.02,1634.4,1634.3,4.89506]
[1744599990647,0.02,1634.4,1634.3,5.14248307]
[1744599991057,0.02,1634.4,1634.3,6.15236871]
[1744599991473,0.02,1634.4,1634.3,6.21354947]
[1744599992041,0.02,1634.4,1634.3,6.15236871]
[1744599992374,0.02,1634.4,1634.3,0.24742307]
[1744599992940,0.02,1634.4,1634.3,5.14248307]
[1744599993141,0.02,1634.4,1634.3,5.20366655]
[1744599993482,0.02,1634.4,1634.3,5.14248307]
[1744599994852,0.02,1634.4,1634.3,5.20366332]
[1744599995182,0.02,1634.4,1634.3,6.1523804]
[1744599995980,0.02,1634.4,1634.3,1.2573204]
[1744599996195,0.02,1634.4,1634.3,6.1523804]
[1744599996980,0.02,1634.4,1634.3,6.2135607]
[1744599997286,0.02,1634.4,1634.3,6.9232804]
[1744600000469,0.02,1634.4,1634.3,0.24742307]
[1744600000669,0.02,1634.4,1634.3,5.14248307]
[1744600001099,0.02,1634.4,1634.3,5.20366262]
[1744600001393,0.02,1634.4,1634.3,5.91338307]
[1744600003898,0.02,1634.4,1634.3,5.97455817]
[1744600004062,0.02,1634.4,1634.3,7.00035989]
[1744600005898,0.02,1634.4,1634.3,14.67835989]
[1744600009901,0.7924,1634.4,1634.3,0.24742307]
[1744600010200,0.7924,1634.4,1634.3,4.89506]
[1744600010373,0.7924,1634.4,1634.3,0.23943299]
[1744600010899,0.7924,1634.4,1634.3,5.13449299]
[1744600013703,0.02,1634.4,1634.3,5.13449299]
[1744600014272,0.02,1634.4,1634.3,6.13746229]
[1744600014971,0.02,1634.4,1634.3,6.19863823]
[1744600015697,0.02,1634.4,1634.3,6.13746229]
[1744600016503,0.02,1634.4,1634.3,10.05134663]
[1744600016799,0.02,1634.4,1634.3,6.92926229]
[1744600017182,0.02,1634.4,1634.3,6.99044058]
[1744600017584,0.02,1634.4,1634.3,1.24240229]
[1744600017813,0.02,1634.4,1634.3,0.23943299]
[1744600018308,0.02,1634.4,1634.3,0.2408695]
[1744600021925,0.02,1634.4,1634.3,5.1359295]
[1744600023321,0.02,1634.4,1634.3,0.2408695]
[1744600023501,0.02,1634.4,1634.3,5.19711527]
[1744600023824,0.02,1634.4,1634.3,1.73962303]
[1744600024023,0.02,1634.4,1634.3,0.2408695]
[1744600024321,0.02,1634.4,1634.2,4.89533]
[1744600024493,0.02,1634.4,1634.3,0.24134551]
[1744600024995,0.8297,1634.4,1634.1,4.89565]
[1744600025225,0.8297,1634.4,1634.3,0.24134551]
[1744600025391,0.8297,1634.4,1634.2,5.13702806]
[1744600025601,0.8297,1634.4,1634.3,0.24134551]
[1744600026692,9.27446,1634.4,1634.3,0.24134551]
[1744600026897,9.27446,1634.4,1633.8,9.7928]
[1744600026898,4.89541,1634.2,1633.8,9.7928]
[1744600027097,4.89541,1634.2,1633.9,0.24350057]
[1744600027628,9.79095,1634.2,1633.9,0.24350057]
[1744600027837,4.89585,1634.1,1633.9,0.24350057]
[1744600027999,5.70566,1634.0,1633.9,0.24350057]
[1744600028201,5.70566,1634.0,1633.7,4.89681]
[1744600028417,0.8097,1634.0,1633.9,0.22281695]
[1744600028626,5.70508,1634.2,1633.9,4.89626]
[1744600028828,14.34708434,1634.4,1633.9,0.73477192]
[1744600028829,11.4847,1634.4,1633.9,0.73477192]
[1744600029031,3.8297,1634.4,1634.1,4.89549]
[1744600029404,0.8297,1634.4,1634.2,5.11846474]
[1744600029801,0.02,1634.4,1634.3,4.89506]
[1744600030117,0.02,1634.4,1634.3,6.11908465]
[1744600033103,7.91476,1634.4,1634.3,0.22267218]
[1744600033428,7.91476,1634.4,1634.0,4.89588]
[1744600033630,3.02,1634.4,1634.1,4.89562]
[1744600033807,3.02,1634.4,1634.1,5.07821596]
[1744600036843,7.91476,1634.4,1634.1,5.07821596]
[1744600037165,0.02,1634.4,1634.3,4.89506]
[1744600037364,0.02,1634.4,1634.3,5.89531078]
[1744600038749,0.02,1634.4,1634.3,5.95648916]
[1744600039038,0.02,1634.4,1634.3,5.89531078]
[1744600039244,0.02,1634.4,1634.3,7.73986486]
[1744600039635,0.02,1634.4,1634.3,7.80103876]
[1744600040523,0.02,1634.4,1634.3,7.73986486]
[1744600040925,0.02,1634.4,1634.3,7.80103468]
[1744600041125,0.02,1634.4,1634.3,7.73986486]
[1744600041916,0.02,1634.4,1634.3,8.35103208]
[1744600042139,0.02,1634.4,1634.3,8.28986486]
[1744600042347,0.02,1634.4,1634.3,11.28986486]
[1744600042549,0.7571,1635.2,1635.1,4.89266]
[1744600042752,0.7771,1635.4,1635.2,4.89224]
[1744600042944,0.7771,1635.4,1635.3,0.17640463]
[1744600043252,0.7771,1635.4,1635.3,5.06846463]
[1744600043753,0.02,1635.4,1635.3,5.06846463]
[1744600044123,0.02,1635.4,1635.3,6.06452809]
[1744600044656,0.02,1635.4,1635.3,6.84682809]
[1744600045140,0.02,1635.4,1635.3,6.06452809]
[1744600045332,0.02,1635.4,1635.3,5.06846463]
[1744600045650,0.8134,1635.4,1635.3,0.17640463]
[1744600046241,9.25516,1635.4,1635.3,0.17640463]
[1744600046461,0.7934,1635.1,1634.8,9.78674]
[1744600046634,0.7934,1635.1,1634.7,4.89378]
[1744600046957,6.25481,1635.1,1634.8,0.14297907]
[1744600048254,0.7934,1635.1,1634.9,4.89325]
[1744600048466,0.7934,1635.1,1634.8,5.03652907]
[1744600048625,0.7934,1635.1,1635.0,0.14117772]
[1744600048825,0.7934,1635.1,1634.9,5.03487013]
[1744600049078,0.7934,1635.1,1635.0,0.14117772]
[1744600050157,0.7934,1635.1,1634.8,4.89355]
[1744600050356,0.7934,1635.1,1634.9,0.14214993]
[1744600050668,0.7934,1635.1,1634.5,4.89443]
[1744600050669,4.89318,1635.0,1634.5,4.89443]
[1744600050869,0.7934,1634.9,1634.5,4.89443]
[1744600051036,0.7934,1634.9,1634.6,4.89405]
[1744600051354,0.7934,1634.9,1634.6,4.89398]
[1744600051527,0.7934,1634.9,1634.6,5.383378]
[1744600051731,5.68667,1634.9,1634.6,5.383378]
[1744600052028,5.68667,1634.9,1634.6,4.89398]
[1744600052252,5.68667,1634.9,1634.5,4.89445]
[1744600052462,5.68667,1634.9,1634.5,9.7889]
[1744600052659,3.7934,1635.0,1634.7,4.89364]
[1744600053062,3.7934,1635.0,1634.8,4.89344]
[1744600053264,0.7934,1635.0,1634.8,4.89344]
[1744600054065,0.02,1635.4,1635.3,4.89206]
[1744600054254,0.02,1635.4,1635.3,3.0]
[1744600054463,0.02,1635.4,1635.3,0.06113655]
[1744600054680,0.02,1635.4,1635.1,3.0]
[1744600054858,7.63,1635.3,1634.8,2.24323051]
[1744600055059,12.52226,1635.3,1634.8,3.8011]
[1744600055258,0.7587,1635.2,1634.8,7.89355]
[1744600055460,0.7587,1635.2,1634.8,3.0]
[1744600055770,8.3877,1635.2,1634.9,4.89325]
[1744600056074,8.3877,1635.2,1635.0,4.89295]
[1744600057272,8.3877,1635.2,1635.1,4.89266]
[1744600057273,0.7587,1635.2,1635.1,4.89266]
[1744600057508,0.02,1635.4,1635.3,4.89206]
[1744600057670,7.649,1635.4,1635.3,4.89206]
[1744600058076,0.02,1635.4,1635.3,4.89206]
[1744600058294,0.02,1635.4,1635.3,5.87048]
[1744600058499,0.02,1635.4,1635.3,0.14218944]
[1744600058822,0.02,1635.4,1635.2,9.78437]
[1744600059122,0.02,1635.4,1635.3,5.69316]
[1744600059278,0.02,1635.4,1635.3,5.03415854]
[1744600059473,0.02,1635.4,1635.3,0.14209854]
[1744600059714,7.649,1635.4,1635.3,0.14209854]
[1744600059872,8.48977,1635.4,1635.3,0.14209854]
[1744600060070,0.02,1635.4,1635.3,4.89206]
[1744600060302,0.02,1635.4,1635.3,5.03575622]
[1744600061491,0.02,1635.4,1635.3,0.14369622]
[1744600061880,0.02,1635.4,1635.3,5.03575622]
[1744600062412,0.7287,1635.5,1635.3,5.03553622]
[1744600062818,7.629,1635.6,1635.4,4.89176]
[1744600063134,3.0,1636.0,1635.6,4.89114]
[1744600063311,7.629,1635.8,1635.6,4.89114]
[1744600063490,7.629,1635.8,1635.7,5.03179943]
[1744600063687,7.629,1635.8,1635.7,0.14107943]
[1744600063883,7.629,1635.8,1635.7,4.89087]
[1744600064110,7.59536189,1635.8,1635.7,4.89087]
[1744600064311,7.59536189,1635.8,1635.7,5.03163138]
[1744600064618,7.59536189,1635.8,1635.6,4.89104]
[1744600064822,7.59536189,1635.8,1635.5,4.89144]
[1744600065025,13.73449608,1635.8,1635.7,0.14076138]
[1744600065188,0.7933,1635.7,1635.6,0.14123366]
[1744600065389,8.4213,1635.9,1635.6,5.03226366]
[1744600065810,13.31158,1635.9,1635.6,0.14123366]
[1744600066088,1.331158,1635.8,1635.6,0.14123366]
[1744600066291,8.4213,1635.9,1635.6,4.89104]
[1744600066598,8.4213,1635.9,1635.7,0.14060362]
[1744600066599,7.628,1635.9,1635.7,0.14060362]
[1744600066998,7.628,1635.9,1635.6,4.89104]
[1744600067208,7.628,1635.9,1635.7,0.14018295]
[1744600067594,0.7933,1635.8,1635.4,4.89175]
[1744600067794,2.124458,1635.8,1635.5,5.03208949]
[1744600069027,4.89088,1635.7,1635.5,0.14075949]
[1744600069200,6.23447,1635.6,1635.5,0.14075949]
[1744600069403,6.23447,1635.6,1634.8,4.89346]
[1744600069404,7.65894702,1635.6,1635.1,4.89244]
[1744600069702,0.7933,1635.4,1635.1,4.89244]
[1744600069893,0.7933,1635.4,1635.2,0.12895779]
[1744600072196,0.7933,1635.6,1635.2,0.12895779]
[1744600072399,7.628,1635.5,1635.2,0.12895779]
[1744600072604,7.628,1635.5,1635.2,5.02120779]
[1744600073034,7.628,1635.5,1635.2,0.12895779]
[1744600073839,0.7933,1635.3,1635.2,0.12895779]
[1744600074008,0.7933,1635.3,1635.1,4.89264]
[1744600074207,0.7933,1635.3,1635.2,0.12906876]
[1744600078943,8.4213,1635.5,1635.2,5.02125876]
[1744600079248,8.4213,1635.5,1635.3,4.89195]
[1744600079644,8.4213,1635.5,1635.4,0.12785148]
[1744600080012,8.4213,1635.5,1635.2,4.89219]
[1744600080217,14.64403,1635.5,1635.4,0.12785148]
[1744600080532,14.64403,1635.5,1635.1,4.8925]
[1744600080737,14.64403,1635.5,1635.2,0.1287961]
[1744600081248,9.75255,1635.5,1635.2,5.0211561]
[1744600081445,9.75255,1635.5,1635.2,0.1287961]
[1744600081652,0.975255,1635.4,1635.2,0.1287961]
[1744600081877,4.89184,1635.4,1635.2,0.1287961]
[1744600082151,4.89347,1634.9,1634.5,4.89434]
[1744600082316,8.4033,1634.8,1634.5,4.89434]
[1744600082522,8.4033,1634.8,1634.6,0.12488055]
[1744600083452,8.4033,1634.8,1634.4,9.78912]
[1744600083754,4.89387,1634.7,1634.5,0.12599008]
[1744600084127,4.89387,1634.7,1634.6,0.12551721]
[1744600084452,13.29687,1634.8,1634.4,4.89462]
[1744600084753,13.29687,1634.8,1634.5,0.12599008]
[1744600084919,13.24687,1634.8,1634.5,0.12599008]
[1744600085121,14.571557,1634.8,1634.5,0.12599008]
[1744600085819,4.89407,1634.7,1634.5,0.12599008]
[1744600086023,5.70626,1634.6,1634.5,0.12599008]
[1744600086232,5.70626,1634.6,1634.1,10.5787]
[1744600086781,5.70626,1634.6,1634.2,5.02275903]
[1744600087157,5.70626,1634.6,1634.2,5.02264903]
[1744600087356,6.766293,1634.6,1634.2,5.02264903]
[1744600087557,6.476693,1634.6,1634.2,5.02264903]
[1744600087928,0.55,1634.5,1634.2,0.12740903]
[1744600088130,17.40101,1634.4,1633.9,10.60418]
[1744600088439,7.611,1634.4,1634.1,4.89553]
[1744600088829,7.611,1634.4,1634.2,0.13194627]
[1744600089173,7.611,1634.4,1634.1,4.89553]
[1744600089331,7.611,1634.4,1634.2,0.13194627]
[1744600089675,7.611,1634.4,1634.2,4.89535]
[1744600089968,7.611,1634.4,1634.3,0.13147321]
[1744600090172,7.611,1634.4,1634.1,4.89553]
[1744600090375,7.611,1634.4,1634.2,0.13194627]
[1744600090527,7.611,1634.4,1634.1,4.89553]
[1744600090528,9.673647,1634.4,1634.1,4.89553]
[1744600090841,14.568437,1634.4,1634.2,0.13194627]
[1744600091256,14.568437,1634.4,1634.0,9.79173]
[1744600091462,17.568437,1634.4,1634.3,0.13147321]
[1744600091677,17.568437,1634.4,1633.9,4.89622]
[1744600091678,4.89519,1634.3,1633.9,4.89622]
[1744600091970,6.7070737,1634.3,1633.9,4.89622]
[1744600092127,6.7070737,1634.3,1634.0,0.13330198]
[1744600092764,11.4231,1634.4,1634.0,0.13330198]
[1744600092964,11.4231,1634.4,1634.1,5.70741]
[1744600093286,7.613,1634.4,1634.2,9.79039]
[1744600093488,7.613,1634.4,1634.2,4.89519]
[1744600093672,7.613,1634.4,1634.3,0.13866456]
[1744600094289,7.614,1634.4,1634.3,0.13866456]
[1744600094994,7.614,1634.4,1634.2,4.89532]
[1744600095195,7.614,1634.4,1634.3,0.13893753]
[1744600095559,8.946056,1634.4,1634.1,4.89562]
[1744600095764,7.614,1634.4,1634.2,0.13941063]
[1744600096008,7.614,1634.4,1634.1,9.79114]
[1744600096295,7.614,1634.4,1634.2,0.13950163]
[1744600096668,7.614,1634.4,1634.1,4.89552]
[1744600096864,7.614,1634.4,1634.3,0.13902852]
[1744600097063,7.614,1634.4,1634.2,0.13950163]
[1744600097372,7.614,1634.4,1634.3,0.13902852]
[1744600097570,12.50876,1634.4,1634.1,4.89552]
[1744600097873,12.50876,1634.4,1634.2,0.13950163]
[1744600098297,12.50876,1634.4,1634.1,4.89552]
[1744600098592,12.50876,1634.4,1634.2,0.13950163]
[1744600098798,12.50876,1634.4,1634.0,4.89591]
[1744600098799,14.330292,1634.4,1634.0,4.89591]
[1744600098982,4.89576,1634.1,1633.7,5.72825]
[1744600099163,7.614,1634.0,1633.7,10.62497]
[1744600099364,7.614,1634.0,1633.7,11.687467]
[1744600099576,7.614,1634.0,1633.8,4.89649]
[1744600100485,7.614,1634.0,1633.9,4.89626]
[1744600102504,7.614,1634.0,1633.8,4.89643]
[1744600102675,7.614,1634.0,1633.7,10.6251]
[1744600102861,7.614,1634.0,1633.8,4.8965]
[1744600103067,7.614,1634.0,1633.9,4.89626]
[1744600104098,7.614,1634.0,1633.8,4.89645]
[1744600104294,7.614,1634.0,1633.3,12.28290407]
[1744600104295,4.89683,1633.8,1633.4,4.89761]
[1744600104486,0.489683,1633.7,1633.4,4.89761]
[1744600104796,13.31319,1633.6,1633.5,0.12563735]
[1744600104961,13.31319,1633.6,1633.3,4.89802]
[1744600105164,13.31319,1633.6,1633.4,0.12620207]
[1744600105575,8.4159,1633.6,1633.4,0.12620207]
[1744600106101,8.4159,1633.6,1633.4,5.02370207]
[1744600106398,7.597,1633.6,1633.4,9.92143207]
[1744600106600,7.597,1633.6,1633.4,5.02370207]
[1744600107492,7.597,1633.6,1633.4,9.92129207]
[1744600108069,7.597,1633.6,1633.4,0.12620207]
[1744600108264,5.71635,1633.5,1633.4,0.12620207]
[1744600108468,5.71635,1633.5,1633.1,5.75001]
[1744600108469,5.71635,1633.5,1633.1,4.91851]
[1744600108704,4.89782,1633.4,1633.1,0.02]
[1744600109405,0.8189,1633.5,1633.1,4.91858]
[1744600109579,0.8189,1633.5,1633.2,4.89823]
[1744600110192,7.597,1633.6,1633.3,4.89785]
[1744600110413,12.49426,1633.6,1633.2,5.72981]
[1744600110700,12.49426,1633.6,1633.1,0.02]
[1744600110701,4.8979,1633.4,1633.1,0.02]
[1744600110906,5.71635,1633.5,1633.1,4.91861]
[1744600111071,7.047685,1633.5,1633.1,9.8171]
[1744600111274,11.945325,1633.5,1633.1,4.91849]
[1744600111474,0.55,1633.3,1633.1,0.02]
[1744600111677,7.599,1633.2,1633.1,0.02]
[1744600112717,7.599,1633.2,1633.1,4.91865]
[1744600113380,7.599,1633.2,1633.1,0.02]
[1744600113599,7.599,1633.2,1633.1,4.91865]
[1744600114608,7.599,1633.2,1633.1,0.02]
[1744600114975,8.3589,1633.2,1633.1,0.02]
[1744600115477,7.599,1633.2,1633.1,0.02]
[1744600116111,7.599,1633.2,1633.1,4.91865]
[1744600116297,7.599,1633.2,1633.1,5.75125]
[1744600116810,7.601,1633.5,1633.4,4.89764]
[1744600117014,7.601,1633.5,1633.1,0.8526]
[1744600117309,7.601,1633.5,1633.2,4.89823]
[1744600117728,7.601,1633.5,1633.4,4.89775]
[1744600117887,7.601,1633.5,1633.3,9.79598]
[1744600118083,7.601,1633.5,1633.4,4.89775]
[1744600120319,11.54030407,1633.5,1633.1,0.02]
[1744600120483,7.89835,1633.2,1633.1,0.02]
[1744600120683,8.71475,1633.2,1633.1,0.02]
[1744600120884,9.26475,1633.2,1633.1,0.02]
[1744600121292,5.7163,1632.7,1632.3,10.63458]
[1744600121491,5.7163,1632.7,1632.3,10.63446]
[1744600121687,7.601,1632.8,1632.5,4.90023]
[1744600122000,3.8164,1633.1,1632.7,4.89981]
[1744600122209,4.89919,1633.0,1632.8,0.13735888]
[1744600122425,4.89919,1633.0,1632.4,4.90062]
[1744600122426,4.89962,1632.8,1632.4,4.90062]
[1744600122622,1.061542,1632.8,1632.5,5.04066448]
[1744600123131,8.71508,1633.1,1632.5,0.14021448]
[1744600123301,3.8164,1633.1,1632.7,4.89957]
[1744600123798,3.8164,1633.1,1632.8,5.02067291]
[1744600124004,7.601,1633.2,1632.8,0.12129291]
[1744600124203,7.601,1633.2,1632.9,0.8326]
[1744600124204,13.34111,1633.2,1632.9,0.8326]
[1744600124433,8.44274,1633.2,1633.0,0.11900024]
[1744600124618,8.44274,1633.2,1632.9,10.63088]
[1744600124812,8.44274,1633.2,1633.0,0.11877243]
[1744600125229,8.44274,1633.2,1632.9,5.73165]
[1744600125430,8.44274,1633.2,1633.0,0.11877243]
[1744600125709,8.44274,1633.2,1632.9,0.8326]
[1744600126216,7.601,1633.2,1633.0,5.01768243]
[1744600126407,7.601,1633.2,1633.0,4.89891]
[1744600126840,7.601,1633.2,1633.1,0.11740747]
[1744600127606,16.86575,1633.2,1633.1,0.11740747]
[1744600127807,5.71615,1632.8,1632.4,4.90075]
[1744600128036,5.71615,1632.8,1632.4,9.80131]
[1744600128214,13.31815,1632.8,1632.4,9.80131]
[1744600128743,13.31815,1632.8,1632.4,4.90056]
[1744600128911,13.31815,1632.8,1632.3,5.73347]
[1744600129109,4.90087,1632.4,1632.1,0.02]
[1744600129527,4.89958,1632.8,1632.4,4.90052]
[1744600129817,10.60365,1632.9,1632.5,4.90026]
[1744600130015,4.89959,1632.8,1632.4,4.90073]
[1744600130441,10.6037,1632.9,1632.4,4.90056]
[1744600130742,5.95993,1632.8,1632.5,4.90034]
[1744600130908,13.56293,1632.8,1632.5,4.90034]
[1744600131542,13.56293,1632.8,1632.4,4.90056]
[1744600131911,5.70597,1632.3,1632.1,0.02]
[1744600132111,13.074957,1632.2,1632.1,0.02]
[1744600132932,7.603,1632.2,1632.1,0.02]
[1744600133649,7.603,1632.2,1632.1,4.92166]
[1744600133841,0.8048,1632.5,1632.2,4.90119]
[1744600133842,3.8048,1632.5,1632.2,4.90119]
[1744600134038,3.8048,1632.5,1632.1,5.71464]
[1744600134248,0.38048,1632.4,1632.2,0.13762993]
[1744600134448,5.28128,1632.4,1632.1,5.85164405]
[1744600134759,8.70548,1632.5,1632.1,5.71464]
[1744600134965,5.45136,1632.2,1632.1,0.15700405]
[1744600135257,13.03836,1632.2,1632.1,0.02]
[1744600135665,12.48836,1632.2,1632.1,0.02]
[1744600135827,14.227322,1632.2,1632.1,0.02]
[1744600136232,15.582122,1632.2,1632.1,0.02]
[1744600136459,18.582122,1632.2,1632.1,0.02]
[1744600136662,24.752122,1632.2,1632.1,0.02]
[1744600141244,24.752122,1632.2,1632.1,1e-05]
[1744600141444,6.25676,1632.0,1631.9,0.005]
[1744600141737,6.25676,1632.0,1631.2,0.005]
[1744600141738,4.9039,1631.4,1631.2,0.005]
[1744600142067,8.45406,1631.3,1631.2,0.005]
[1744600142240,8.92296791,1631.3,1631.2,0.005]
[1744600143042,8.45406,1631.3,1631.2,0.005]
[1744600143242,6.17,1631.4,1631.2,0.005]
[1744600143565,13.29727,1631.5,1631.2,0.005]
[1744600143739,15.472315,1631.5,1631.2,0.005]
[1744600143939,4.90377,1631.4,1631.2,0.005]
[1744600144158,9.80779,1631.4,1631.2,0.005]
[1744600144365,5.45406,1631.3,1631.2,0.005]
[1744600145235,9.27766,1631.3,1631.2,0.005]
[1744600145443,4.90547,1630.9,1630.6,0.3996769]
[1744600145667,12.49547,1630.9,1630.6,0.3996769]
[1744600146146,7.59,1630.9,1630.6,0.3996769]
[1744600146565,7.59,1630.9,1630.6,5.3056469]
[1744600146869,12.49526,1630.9,1630.6,0.3996769]
[1744600147068,4.90569,1630.8,1630.6,0.3996769]
[1744600147233,7.59,1630.9,1630.6,0.3996769]
[1744600147439,13.25438,1630.9,1630.6,0.3996769]
[1744600147640,4.90586,1630.7,1630.6,0.3996769]
[1744600147839,0.55,1630.8,1630.6,0.3996769]
[1744600148257,13.25427,1630.9,1630.6,0.3996769]
[1744600148568,4.9045,1631.2,1630.7,5.68813]
[1744600148741,4.9045,1631.2,1630.8,4.90538]
[1744600148937,0.8236,1631.1,1630.6,0.3996769]
[1744600149138,4.90574,1630.8,1630.6,0.3996769]
[1744600149356,13.534843,1630.8,1630.6,0.3996769]
[1744600150042,6.27946,1630.7,1630.6,0.3996769]
[1744600150241,9.27946,1630.7,1630.6,0.3996769]
[1744600150443,0.8236,1630.6,1630.1,0.02]
[1744600150645,5.73097,1630.2,1630.1,0.02]
[1744600150843,14.38779,1630.2,1630.1,0.02]
[1744600151052,14.93779,1630.2,1630.1,0.02]
[1744600151281,7.34479,1630.2,1630.1,0.02]
[1744600151548,9.48042,1630.2,1630.1,0.02]
[1744600151764,0.55,1630.5,1630.1,0.02]
[1744600152072,3.55,1630.3,1630.1,0.02]
[1744600152272,5.73049,1630.4,1630.1,0.02]
[1744600152273,0.8236,1630.4,1630.1,0.02]
[1744600152643,4.90652,1630.5,1630.1,4.92767]
[1744600152839,3.0,1630.5,1630.2,4.90737]
[1744600153039,3.0,1630.5,1630.2,5.68954]
[1744600153463,4.632489,1630.5,1630.1,4.92762]
[1744600153664,4.632489,1630.5,1630.2,4.90735]
[1744600153874,7.595,1630.6,1630.3,4.90706]
[1744600154176,7.595,1630.6,1630.4,4.90661]
[1744600154576,7.595,1630.6,1630.4,4.90656]
[1744600154880,52.58,1630.8,1630.5,4.90618]
[1744600155043,52.58,1630.8,1630.1,0.02]
[1744600155044,4.9065,1630.5,1630.1,0.02]
[1744600155245,6.2795,1630.7,1630.1,4.92739]
[1744600155246,4.90628,1630.6,1630.1,4.92739]
[1744600155444,0.490628,1630.5,1630.2,4.90725]
[1744600155645,3.0,1630.6,1630.2,0.7823]
[1744600155879,3.0,1630.7,1630.4,4.90653]
[1744600156076,3.0,1630.7,1630.4,4.90673]
[1744600156376,52.58,1630.8,1630.5,4.90628]
[1744600156577,4.9066,1630.5,1630.1,4.92755]
[1744600156872,0.8236,1630.6,1630.2,5.68946]
[1744600157066,5.72981,1630.6,1630.2,5.68946]
[1744600157277,7.148366,1630.6,1630.2,4.90732]
[1744600157478,4.9065,1630.5,1630.1,4.92763]
[1744600157641,7.596,1630.5,1630.2,4.90732]
[1744600157847,12.50248,1630.5,1630.1,9.83509]
[1744600158048,12.50248,1630.5,1630.1,0.02]
[1744600158049,5.45737,1630.2,1630.1,0.02]
[1744600158258,4.90737,1630.2,1630.1,0.02]
[1744600158855,5.73009,1630.5,1630.1,5.70975]
[1744600159055,5.73013,1630.5,1630.1,5.70975]
[1744600159261,5.73013,1630.5,1630.1,0.02]
[1744600159550,0.7568,1630.2,1630.1,0.02]
[1744600159766,5.66417,1630.2,1630.1,0.02]
[1744600160089,13.81017,1630.2,1630.1,0.02]
[1744600160454,13.26017,1630.2,1630.1,0.02]
[1744600160666,7.596,1630.2,1630.1,0.02]
[1744600161200,15.060485,1630.2,1630.1,0.02]
[1744600161799,10.153115,1630.2,1630.1,0.02]
[1744600162395,15.060485,1630.2,1630.1,0.02]
[1744600162577,8.846315,1630.2,1630.1,0.02]
[1744600162762,18.060485,1630.2,1630.1,0.02]
[1744600164594,24.230485,1630.2,1630.1,0.02]
[1744600164896,5.72907,1629.6,1629.2,4.91027]
[1744600165049,7.587,1629.7,1629.5,5.67347]
[1744600165255,7.587,1629.7,1629.5,0.764]
[1744600165655,7.587,1630.0,1629.7,4.90869]
[1744600165891,7.587,1630.0,1629.8,4.90855]
[1744600166202,4.90842,1629.9,1629.5,5.67344]
[1744600166502,6.157962,1629.9,1629.5,0.764]
[1744600166702,4.90871,1629.8,1629.5,0.764]
[1744600167198,9.81748,1629.8,1629.5,0.764]
[1744600167352,4.90871,1629.8,1629.5,0.764]
[1744600167683,4.90987,1629.4,1629.1,0.02]
[1744600168071,12.49775,1629.5,1629.1,0.02]
[1744600168275,12.49775,1629.5,1629.2,4.91027]
[1744600168276,7.588,1629.5,1629.2,4.91027]
[1744600168674,9.63429357,1629.8,1629.4,5.67378]
[1744600168675,4.90868,1629.8,1629.4,5.67378]
[1744600168877,67.184552,1629.9,1629.5,4.90945]
[1744600169051,62.276242,1629.9,1629.4,0.567378]
[1744600169255,62.276242,1629.9,1629.3,0.764]
[1744600169256,4.9091,1629.7,1629.3,5.67406]
[1744600169455,67.184532,1629.9,1629.3,0.764]
[1744600169671,62.276242,1629.9,1629.3,0.764]
[1744600169872,60.207,1629.9,1629.6,4.90906]
[1744600170080,13.147405,1630.2,1629.7,4.90887]
[1744600170294,7.589,1630.1,1629.9,4.90823]
[1744600170591,7.589,1630.1,1629.6,0.764]
[1744600170592,7.589,1630.4,1629.6,0.764]
[1744600170776,4.90751,1630.2,1629.8,4.90852]
[1744600171157,4.9071,1630.3,1629.9,9.81636]
[1744600171490,12.49584,1630.4,1630.0,5.67183]
[1744600171781,4.90708,1630.3,1629.9,5.67225]
[1744600171985,12.49584,1630.4,1630.0,4.90796]
[1744600172388,4.90799,1630.0,1629.6,4.90905]
[1744600172554,9.81619,1630.0,1629.6,4.90905]
[1744600172759,4.90799,1630.0,1629.6,4.90905]
[1744600173084,4.90831,1629.9,1629.5,9.81873]
[1744600173291,4.90831,1629.9,1629.4,4.90977]
[1744600173588,4.90921,1629.6,1629.2,4.91033]
[1744600173951,4.90921,1629.6,1629.2,9.82051]
[1744600174187,3.8197,1629.8,1629.2,4.91038]
[1744600174367,4.90887,1629.7,1629.3,4.90993]
[1744600174767,4.90887,1629.7,1629.3,4.90989]
[1744600175069,9.81799,1629.7,1629.3,4.90989]
[1744600175487,6.92405,1629.8,1629.3,4.90989]
[1744600175686,7.588,1629.9,1629.5,4.90922]
[1744600175864,6.659637,1630.0,1629.6,9.81816]